[Event "FTX Road to Miami Prelims 2022"]
[Site "Online"]
[Date "2022.07.04"]
[Round "11.5"]
[White "Tari, Aryan"]
[Black "Wei, Yi"]
[Result "1/2-1/2"]
[ECO "B50"]
[WhiteElo "2672"]
[BlackElo "2727"]
[Annotator "ChessBase"]
[PlyCount "276"]
[EventDate "2022.07.10"]
[EventType "tourn"]
[EventCountry "NET"]
[SourceTitle "playchess.com"]
[Source "ChessBase"]
[SourceQuality "1"]
[TimeControl "40/5400+30:1800+30"]

1. e4 {[%emt 1:15:40]} c5 {[%emt 1:15:40]} 2. Nf3 {[%emt 0:00:22]} d6 {[%emt 0:00:22]} 3. Nc3 {[%emt 0:00:21]} Nf6 {[%emt 0:00:22]} 4. h3 {[%emt 0:00:26]} a6 {[%emt 0:00:22]} 5. a4 {[%emt 0:00:22]} b6 {[%emt 0:00:36]} 6. d4 {[%emt 0:05:23]} cxd4 {[%emt 0:00:22]} 7. Nxd4 {[%emt 0:01:01]} Bb7 {[%emt 0:00:21]} 8. Bd3 {[%emt 0:00:21]} g6 {[%emt 0:00:32]} 9. O-O {[%emt 0:00:21]} Bg7 {[%emt 0:00:21]} 10. Re1 {[%emt 0:00:23]} O-O {[%emt 0:00:27]} 11. Be3 {[%emt 0:00:37]} Nbd7 {[%emt 0:01:10]} 12. Qd2 {[%emt 0:00:22]} Rc8 {[%emt 0:01:15]} 13. Bh6 {[%emt 0:01:08]} e5 {[%emt 0:00:25]} 14. Bxg7 {[%emt 0:01:22]} Kxg7 {[%emt 0:00:21]} 15. Nb3 {[%emt 0:00:37]} Rc7 {[%emt 0:02:16]} 16. Bf1 {[%emt 0:01:46]} Rc6 {[%emt 0:01:44]} 17. Nc1 {[%emt 0:01:16]} Qa8 {[%emt 0:02:44]} 18. N1a2 {[%emt 0:00:43]} Rd8 {[%emt 0:05:15]} 19. Nb4 {[%emt 0:00:45]} Rc5 {[%emt 0:00:33]} 20. Qxd6 {[%emt 0:02:52]} a5 {[%emt 0:00:24]} 21. Nd3 {[%emt 0:01:37]} Rc6 {[%emt 0:00:38]} 22. Qa3 {[%emt 0:00:27]} Rcc8 {[%emt 0:01:12]} 23. f3 {[%emt 0:00:44]} Ba6 {[%emt 0:00:25]} 24. Rad1 {[%emt 0:00:36]} Bxd3 {[%emt 0:00:23]} 25. Bxd3 {[%emt 0:00:43]} Nc5 {[%emt 0:00:21]} 26. Bb5 {[%emt 0:00:31]} Ne6 {[%emt 0:00:29]} 27. Rxd8 {[%emt 0:00:47]} Rxd8 {[%emt 0:00:21]} 28. Ne2 {[%emt 0:00:30]} Nh5 {[%emt 0:01:30]} 29. Bc4 {[%emt 0:00:49]} Qc8 {[%emt 0:00:54]} 30. Bxe6 {[%emt 0:00:48]} Qxe6 {[%emt 0:00:21]} 31. Qe3 {[%emt 0:00:38]} Qf6 {[%emt 0:01:54]} 32. Kh2 {[%emt 0:01:06]} Nf4 {[%emt 0:00:26]} 33. Nxf4 {[%emt 0:00:57]} exf4 {[%emt 0:00:21]} 34. e5 {[%emt 0:00:29]} Qg5 {[%emt 0:00:32]} 35. Qf2 {[%emt 0:00:24]} Re8 {[%emt 0:01:02]} 36. h4 {[%emt 0:00:36]} Qd8 {[%emt 0:00:24]} 37. Re4 {[%emt 0:00:25]} Re6 {[%emt 0:00:32]} 38. Qe1 {[%emt 0:00:43]} g5 {[%emt 0:00:30]} 39. hxg5 {[%emt 0:00:28]} Qxg5 {[%emt 0:00:21]} 40. Qd2 {[%emt 0:00:24]} Rxe5 {[%emt 0:01:11]} 41. Rxf4 {[%emt 0:30:31]} h5 {[%emt 0:31:09]} 42. Qd4 {[%emt 0:00:22]} f6 {[%emt 0:00:32]} 43. Re4 {[%emt 0:00:50]} Rxe4 {[%emt 0:00:30]} 44. Qxe4 {[%emt 0:00:20]} Qd2 {[%emt 0:00:37]} 45. b3 {[%emt 0:00:31]} Kh6 {[%emt 0:00:28]} 46. Kg3 {[%emt 0:00:25]} Kg7 {[%emt 0:00:31]} 47. Qf5 {[%emt 0:00:37]} Qe1+ {[%emt 0:00:31]} 48. Kh2 {[%emt 0:00:26]} Qd2 {[%emt 0:00:41]} 49. Kh3 {[%emt 0:00:42]} Qe1 {[%emt 0:00:24]} 50. Kh2 {[%emt 0:00:30]} Qd2 {[%emt 0:00:21]} 51. Qxh5 {[%emt 0:00:23]} Qxc2 {[%emt 0:00:23]} 52. Qg4+ {[%emt 0:00:20]} Kh6 {[%emt 0:00:30]} 53. Qe6 {[%emt 0:00:31]} Qc3 {[%emt 0:00:37]} 54. Qxb6 {[%emt 0:00:48]} Qe5+ {[%emt 0:00:22]} 55. Kh1 {[%emt 0:00:20]} Kg6 {[%emt 0:00:48]} 56. Qf2 {[%emt 0:00:23]} Qc3 {[%emt 0:00:28]} 57. Qg3+ {[%emt 0:00:24]} Kf7 {[%emt 0:00:25]} 58. Qg4 {[%emt 0:00:27]} Qxb3 {[%emt 0:00:36]} 59. Qh5+ {[%emt 0:00:21]} Kg7 {[%emt 0:00:30]} 60. Qxa5 {[%emt 0:00:20]} Qb1+ {[%emt 0:00:30]} 61. Kh2 {[%emt 0:00:22]} Qh7+ {[%emt 0:00:21]} 62. Kg3 {[%emt 0:00:21]} Qg6+ {[%emt 0:00:21]} 63. Kf2 {[%emt 0:00:24]} Qc2+ {[%emt 0:00:21]} 64. Ke3 {[%emt 0:00:41]} Qxg2 {[%emt 0:00:22]} 65. Qc7+ {[%emt 0:01:02]} Kg6 {[%emt 0:00:21]} 66. Qc6 {[%emt 0:00:23]} Qg1+ {[%emt 0:00:32]} 67. Kd3 {[%emt 0:00:27]} Qd1+ {[%emt 0:00:46]} 68. Kc4 {[%emt 0:00:25]} Qe2+ {[%emt 0:00:29]} 69. Kc5 {[%emt 0:00:28]} Qe3+ {[%emt 0:00:27]} 70. Kb5 {[%emt 0:00:23]} Qe2+ {[%emt 0:00:32]} 71. Kb6 {[%emt 0:00:26]} Qe3+ {[%emt 0:00:23]} 72. Kc7 {[%emt 0:00:38]} Qe5+ {[%emt 0:00:54]} 73. Kc8 {[%emt 0:00:30]} Qa5 {[%emt 0:00:46]} 74. Qe8+ {[%emt 0:00:35]} Kg7 {[%emt 0:00:26]} 75. Qd7+ {[%emt 0:01:01]} Kg6 {[%emt 0:00:24]} 76. Qc6 {[%emt 0:00:39]} Qf5+ {[%emt 0:00:28]} 77. Kb7 {[%emt 0:00:25]} Qb1+ {[%emt 0:00:34]} 78. Ka8 {[%emt 0:00:25]} Qa2 {[%emt 0:00:30]} 79. Ka7 {[%emt 0:00:42]} Kg5 {[%emt 0:00:22]} 80. Ka6 {[%emt 0:00:32]} f5 {[%emt 0:00:24]} 81. a5 {[%emt 0:00:23]} Qe2+ {[%emt 0:00:23]} 82. Kb7 {[%emt 0:00:24]} Qe7+ {[%emt 0:00:31]} 83. Qc7 {[%emt 0:00:33]} Qb4+ {[%emt 0:00:22]} 84. Kc8 {[%emt 0:00:21]} Qb5 {[%emt 0:00:45]} 85. Qg3+ {[%emt 0:00:51]} Kh5 {[%emt 0:00:25]} 86. Qh3+ {[%emt 0:00:21]} Kg5 {[%emt 0:00:23]} 87. Qg3+ {[%emt 0:00:21]} Kh5 {[%emt 0:00:25]} 88. Qc7 {[%emt 0:00:30]} Kg5 {[%emt 0:00:22]} 89. Qb6 {[%emt 0:00:48]} Qc4+ {[%emt 0:00:31]} 90. Kd8 {[%emt 0:00:35]} Qd5+ {[%emt 0:00:34]} 91. Ke7 {[%emt 0:00:22]} Qe5+ {[%emt 0:00:57]} 92. Kf8 {[%emt 0:00:29]} Qh8+ {[%emt 0:00:21]} 93. Kf7 {[%emt 0:00:23]} Qh7+ {[%emt 0:00:21]} 94. Ke8 {[%emt 0:00:21]} Qh5+ {[%emt 0:00:25]} 95. Ke7 {[%emt 0:00:21]} Qxf3 {[%emt 0:00:30]} 96. a6 {[%emt 0:00:24]} Qe4+ {[%emt 0:00:43]} 97. Kf8 {[%emt 0:00:38]} f4 {[%emt 0:00:41]} 98. a7 {[%emt 0:00:28]} Kg4 {[%emt 0:00:23]} 99. Qb8 {[%emt 0:00:56]} Qf5+ {[%emt 0:00:22]} 100. Ke7 {[%emt 0:00:25]} Qc5+ {[%emt 0:00:28]} 101. Kd8 {[%emt 0:00:27]} Qd5+ {[%emt 0:00:27]} 102. Kc8 {[%emt 0:00:22]} Qe6+ {[%emt 0:00:23]} 103. Kc7 {[%emt 0:00:23]} Qc4+ {[%emt 0:00:33]} 104. Kd6 {[%emt 0:00:26]} Qd4+ {[%emt 0:00:24]} 105. Ke6 {[%emt 0:00:24]} Qc4+ {[%emt 0:00:36]} 106. Kd7 {[%emt 0:00:57]} Qf7+ {[%emt 0:00:56]} 107. Kc8 {[%emt 0:00:27]} Qe6+ {[%emt 0:00:23]} 108. Kc7 {[%emt 0:00:37]} Qc4+ {[%emt 0:00:30]} 109. Kb7 {[%emt 0:00:26]} Qb5+ {[%emt 0:00:27]} 110. Kc7 {[%emt 0:00:23]} Qe5+ {[%emt 0:00:28]} 111. Kb6 {[%emt 0:00:29]} Qd4+ {[%emt 0:00:24]} 112. Kb5 {[%emt 0:00:30]} Qd5+ {[%emt 0:00:28]} 113. Ka4 {[%emt 0:00:26]} Qd4+ {[%emt 0:00:25]} 114. Kb3 {[%emt 0:00:23]} Qd3+ {[%emt 0:00:22]} 115. Ka2 {[%emt 0:00:30]} Qa6+ {[%emt 0:00:40]} 116. Kb1 {[%emt 0:00:35]} Qd3+ {[%emt 0:00:24]} 117. Kb2 {[%emt 0:00:26]} Qd2+ {[%emt 0:00:21]} 118. Kb3 {[%emt 0:00:21]} Qd3+ {[%emt 0:00:22]} 119. Ka4 {[%emt 0:00:22]} Qd4+ {[%emt 0:00:22]} 120. Ka5 {[%emt 0:00:25]} Qc5+ {[%emt 0:00:42]} 121. Ka6 {[%emt 0:00:21]} Qa3+ {[%emt 0:00:21]} 122. Kb7 {[%emt 0:00:23]} Qb4+ {[%emt 0:00:27]} 123. Kc8 {[%emt 0:00:25]} Qf8+ {[%emt 0:00:21]} 124. Kd7 {[%emt 0:00:22]} Qf7+ {[%emt 0:00:21]} 125. Kd6 {[%emt 0:00:21]} Qf6+ {[%emt 0:00:27]} 126. Kd5 {[%emt 0:00:23]} Qf7+ {[%emt 0:00:36]} 127. Kd4 {[%emt 0:00:21]} Qd7+ {[%emt 0:00:37]} 128. Kc5 {[%emt 0:00:33]} Qe7+ {[%emt 0:00:31]} 129. Kc6 {[%emt 0:00:23]} Qe4+ {[%emt 0:00:27]} 130. Kd7 {[%emt 0:00:22]} Qf5+ {[%emt 0:00:29]} 131. Ke7 {[%emt 0:00:24]} Qc5+ {[%emt 0:00:23]} 132. Ke6 {[%emt 0:00:40]} Qf5+ {[%emt 0:00:24]} 133. Kd6 {[%emt 0:00:22]} Qf6+ {[%emt 0:00:22]} 134. Kd5 {[%emt 0:00:21]} Qf7+ {[%emt 0:00:23]} 135. Kd4 {[%emt 0:00:23]} Qd7+ {[%emt 0:00:25]} 136. Kc5 {[%emt 0:00:22]} Qf5+ {[%emt 0:00:27]} 137. Kb6 {[%emt 0:00:24]} Qe6+ {[%emt 0:00:23]} 138. Ka5 {[%emt 0:00:28]} Qa2+ {[%emt 0:00:23]} 1/2-1/2

[Event "FTX Road to Miami Prelims 2022"]
[Site "Online"]
[Date "2022.07.04"]
[Round "11.6"]
[White "Sevian, Samuel"]
[Black "Shankland, Sam"]
[Result "1-0"]
[ECO "B69"]
[WhiteElo "2684"]
[BlackElo "2720"]
[Annotator "ChessBase"]
[PlyCount "133"]
[EventDate "2022.07.10"]
[EventType "tourn"]
[EventCountry "NET"]
[SourceTitle "playchess.com"]
[Source "ChessBase"]
[SourceQuality "1"]
[TimeControl "40/5400+30:1800+30"]

1. e4 {[%emt 1:15:40]} c5 {[%emt 1:15:40]} 2. Nf3 {[%emt 0:00:22]} d6 {[%emt 0:00:21]} 3. d4 {[%emt 0:00:21]} cxd4 {[%emt 0:00:21]} 4. Nxd4 {[%emt 0:00:19]} Nf6 {[%emt 0:00:21]} 5. Nc3 {[%emt 0:00:21]} Nc6 {[%emt 0:00:21]} 6. Bg5 {[%emt 0:00:36]} e6 {[%emt 0:00:21]} 7. Qd2 {[%emt 0:00:23]} a6 {[%emt 0:00:23]} 8. O-O-O {[%emt 0:00:33]} Bd7 {[%emt 0:00:30]} 9. f4 {[%emt 0:00:45]} Be7 {[%emt 0:00:25]} 10. Nf3 {[%emt 0:00:32]} b5 {[%emt 0:00:21]} 11. Bxf6 {[%emt 0:00:21]} gxf6 {[%emt 0:00:21]} 12. f5 {[%emt 0:00:42]} Qb6 {[%emt 0:00:28]} 13. Ne2 {[%emt 0:01:45]} O-O-O {[%emt 0:00:33]} 14. Nf4 {[%emt 0:00:22]} Kb8 {[%emt 0:02:39]} 15. g3 {[%emt 0:00:41]} d5 {[%emt 0:03:16]} 16. exd5 {[%emt 0:10:11]} e5 {[%emt 0:00:25]} 17. Nd3 {[%emt 0:02:02]} Na5 {[%emt 0:01:29]} 18. Qf2 {[%emt 0:00:22]} Qxf2 {[%emt 0:02:48]} 19. Nxf2 {[%emt 0:00:20]} Bxf5 {[%emt 0:00:21]} 20. Nh4 {[%emt 0:00:21]} Bg6 {[%emt 0:00:34]} 21. Ng4 {[%emt 0:00:44]} Nb7 {[%emt 0:01:21]} 22. Bh3 {[%emt 0:00:31]} Nd6 {[%emt 0:02:07]} 23. Ne3 {[%emt 0:00:22]} Bf8 {[%emt 0:01:20]} 24. Nhf5 {[%emt 0:00:32]} Ne4 {[%emt 0:00:38]} 25. Rhf1 {[%emt 0:00:49]} Bc5 {[%emt 0:00:24]} 26. Bg2 {[%emt 0:00:43]} Nd6 {[%emt 0:00:30]} 27. Kb1 {[%emt 0:00:21]} Rhe8 {[%emt 0:01:08]} 28. Nxd6 {[%emt 0:00:28]} Rxd6 {[%emt 0:00:21]} 29. Nf5 {[%emt 0:00:25]} Bxf5 {[%emt 0:00:24]} 30. Rxf5 {[%emt 0:00:20]} e4 {[%emt 0:00:21]} 31. c3 {[%emt 0:00:45]} e3 {[%emt 0:00:25]} 32. Kc2 {[%emt 0:00:40]} Re5 {[%emt 0:00:34]} 33. Rxe5 {[%emt 0:01:31]} fxe5 {[%emt 0:00:22]} 34. b4 {[%emt 0:00:20]} Bb6 {[%emt 0:00:29]} 35. Rf1 {[%emt 0:00:24]} Rh6 {[%emt 0:00:59]} 36. h3 {[%emt 0:00:22]} e2 {[%emt 0:00:54]} 37. Re1 {[%emt 0:00:24]} Bf2 {[%emt 0:00:21]} 38. Rxe2 {[%emt 0:00:21]} Bxg3 {[%emt 0:00:21]} 39. Rd2 {[%emt 0:00:53]} Kc7 {[%emt 0:00:29]} 40. Be4 {[%emt 0:00:25]} Kd6 {[%emt 0:00:33]} 41. Rg2 {[%emt 0:30:34]} Rxh3 {[%emt 0:30:57]} 42. Bf5 {[%emt 0:00:22]} Rh5 {[%emt 0:00:54]} 43. Bc8 {[%emt 0:00:22]} Rg5 {[%emt 0:00:59]} 44. Bxa6 {[%emt 0:00:21]} f5 {[%emt 0:01:25]} 45. Bxb5 {[%emt 0:00:27]} f4 {[%emt 0:00:23]} 46. c4 {[%emt 0:00:23]} e4 {[%emt 0:00:35]} 47. Rd2 {[%emt 0:01:00]} e3 {[%emt 0:00:25]} 48. Re2 {[%emt 0:01:49]} Bf2 {[%emt 0:00:53]} 49. Kd3 {[%emt 0:00:37]} f3 {[%emt 0:01:00]} 50. Rxe3 {[%emt 0:00:28]} Bxe3 {[%emt 0:00:21]} 51. Kxe3 {[%emt 0:00:21]} Rf5 {[%emt 0:00:28]} 52. Kf2 {[%emt 0:00:32]} h5 {[%emt 0:01:05]} 53. Bc6 {[%emt 0:00:37]} h4 {[%emt 0:00:30]} 54. c5+ {[%emt 0:00:20]} Kc7 {[%emt 0:00:24]} 55. b5 {[%emt 0:00:30]} h3 {[%emt 0:00:40]} 56. d6+ {[%emt 0:00:21]} Kd8 {[%emt 0:00:50]} 57. b6 {[%emt 0:00:29]} Rxc5 {[%emt 0:00:31]} 58. b7 {[%emt 0:00:27]} Rc2+ {[%emt 0:00:21]} 59. Kxf3 {[%emt 0:00:22]} Rb2 {[%emt 0:00:21]} 60. Kg3 {[%emt 0:00:59]} h2 {[%emt 0:00:26]} 61. a4 {[%emt 0:00:28]} h1=Q {[%emt 0:00:43]} 62. Bxh1 {[%emt 0:00:23]} Kd7 {[%emt 0:00:21]} 63. a5 {[%emt 0:00:23]} Kxd6 {[%emt 0:00:40]} 64. a6 {[%emt 0:00:21]} Rb3+ {[%emt 0:00:24]} 65. Kf2 {[%emt 0:00:20]} Rb2+ {[%emt 0:00:23]} 66. Ke3 {[%emt 0:00:21]} Rb3+ {[%emt 0:00:54]} 67. Kd2 {[%emt 0:00:21]} 1-0

[Event "FTX Road to Miami Prelims 2022"]
[Site "Online"]
[Date "2022.07.04"]
[Round "11.7"]
[White "Aronian, Levon"]
[Black "Wojtaszek, Radoslaw"]
[Result "1-0"]
[ECO "B50"]
[WhiteElo "2775"]
[BlackElo "2708"]
[Annotator "ChessBase"]
[PlyCount "85"]
[EventDate "2022.07.10"]
[EventType "tourn"]
[EventCountry "NET"]
[SourceTitle "playchess.com"]
[Source "ChessBase"]
[SourceQuality "1"]
[TimeControl "40/5400+30:1800+30"]

1. e4 {[%emt 1:15:40]} c5 {[%emt 1:15:40]} 2. Nf3 {[%emt 0:00:22]} d6 {[%emt 0:00:22]} 3. Bc4 {[%emt 0:00:20]} Nf6 {[%emt 0:00:22]} 4. d3 {[%emt 0:00:21]} e6 {[%emt 0:00:22]} 5. O-O {[%emt 0:00:21]} Be7 {[%emt 0:00:22]} 6. a4 {[%emt 0:00:22]} O-O {[%emt 0:00:27]} 7. Nbd2 {[%emt 0:00:21]} Nc6 {[%emt 0:00:25]} 8. c3 {[%emt 0:00:26]} a6 {[%emt 0:00:30]} 9. Re1 {[%emt 0:00:25]} Rb8 {[%emt 0:00:47]} 10. Bb3 {[%emt 0:00:35]} b5 {[%emt 0:00:27]} 11. Nf1 {[%emt 0:00:29]} Bb7 {[%emt 0:00:45]} 12. Ng3 {[%emt 0:00:27]} Rc8 {[%emt 0:02:05]} 13. d4 {[%emt 0:00:44]} cxd4 {[%emt 0:01:17]} 14. cxd4 {[%emt 0:00:20]} Nb4 {[%emt 0:01:02]} 15. axb5 {[%emt 0:01:30]} axb5 {[%emt 0:00:22]} 16. Bg5 {[%emt 0:00:26]} h6 {[%emt 0:00:55]} 17. Bxf6 {[%emt 0:00:47]} Bxf6 {[%emt 0:00:22]} 18. Qd2 {[%emt 0:00:22]} Na6 {[%emt 0:01:35]} 19. Nh5 {[%emt 0:00:53]} Be7 {[%emt 0:03:01]} 20. Qf4 {[%emt 0:00:24]} Kh8 {[%emt 0:01:01]} 21. Qg4 {[%emt 0:00:50]} Rg8 {[%emt 0:00:22]} 22. Nf4 {[%emt 0:00:29]} Nc7 {[%emt 0:01:37]} 23. Ra7 {[%emt 0:00:31]} Ba8 {[%emt 0:00:49]} 24. d5 {[%emt 0:02:02]} e5 {[%emt 0:00:41]} 25. Nd3 {[%emt 0:00:22]} Ne8 {[%emt 0:01:34]} 26. Rea1 {[%emt 0:02:14]} Nf6 {[%emt 0:00:25]} 27. Qf5 {[%emt 0:00:26]} Rb8 {[%emt 0:01:06]} 28. Nb4 {[%emt 0:00:53]} Bb7 {[%emt 0:00:49]} 29. Nc6 {[%emt 0:00:24]} Qe8 {[%emt 0:00:24]} 30. Nxb8 {[%emt 0:01:23]} Bc8 {[%emt 0:00:22]} 31. Nc6 {[%emt 0:00:21]} Bxf5 {[%emt 0:00:50]} 32. Rxe7 {[%emt 0:00:40]} Qc8 {[%emt 0:00:42]} 33. exf5 {[%emt 0:00:22]} Qxf5 {[%emt 0:00:21]} 34. Rd1 {[%emt 0:00:22]} Nh5 {[%emt 0:00:31]} 35. Ncxe5 {[%emt 0:01:44]} dxe5 {[%emt 0:00:37]} 36. Nxe5 {[%emt 0:00:21]} Nf4 {[%emt 0:01:21]} 37. d6 {[%emt 0:00:21]} Kh7 {[%emt 0:01:00]} 38. Rxf7 {[%emt 0:00:22]} Nh3+ {[%emt 0:02:42]} 39. gxh3 {[%emt 0:00:23]} Qxe5 {[%emt 0:00:21]} 40. Bc2+ {[%emt 0:00:32]} Kh8 {[%emt 0:00:21]} 41. d7 {[%emt 0:30:21]} Rd8 {[%emt 0:30:25]} 42. Rf8+ {[%emt 0:00:31]} Rxf8 {[%emt 0:00:30]} 43. d8=Q {[%emt 0:00:21]} 1-0

[Event "FTX Road to Miami Prelims 2022"]
[Site "Online"]
[Date "2022.07.04"]
[Round "12.1"]
[White "Niemann, Hans Moke"]
[Black "Rapport, Richard"]
[Result "0-1"]
[ECO "B51"]
[WhiteElo "2688"]
[BlackElo "2764"]
[Annotator "ChessBase"]
[PlyCount "140"]
[EventDate "2022.07.10"]
[EventType "tourn"]
[EventCountry "NET"]
[SourceTitle "playchess.com"]
[Source "ChessBase"]
[SourceQuality "1"]
[TimeControl "40/5400+30:1800+30"]

1. e4 {[%emt 1:15:40]} c5 {[%emt 1:15:40]} 2. Nf3 {[%emt 0:00:23]} d6 {[%emt 0:00:22]} 3. Bb5+ {[%emt 0:00:22]} Nd7 {[%emt 0:00:27]} 4. O-O {[%emt 0:00:22]} a6 {[%emt 0:00:26]} 5. Bd3 {[%emt 0:00:21]} g6 {[%emt 0:00:25]} 6. c3 {[%emt 0:00:38]} Bg7 {[%emt 0:00:28]} 7. Bc2 {[%emt 0:00:22]} Ne5 {[%emt 0:00:22]} 8. Nxe5 {[%emt 0:00:53]} dxe5 {[%emt 0:00:20]} 9. d3 {[%emt 0:00:30]} Nf6 {[%emt 0:00:21]} 10. a4 {[%emt 0:00:33]} b6 {[%emt 0:00:32]} 11. h3 {[%emt 0:00:25]} Nh5 {[%emt 0:00:30]} 12. Be3 {[%emt 0:00:31]} a5 {[%emt 0:00:25]} 13. Nd2 {[%emt 0:00:40]} Nf4 {[%emt 0:00:38]} 14. d4 {[%emt 0:00:47]} cxd4 {[%emt 0:00:43]} 15. cxd4 {[%emt 0:00:21]} Ba6 {[%emt 0:00:38]} 16. Re1 {[%emt 0:00:24]} Ne2+ {[%emt 0:00:24]} 17. Rxe2 {[%emt 0:00:46]} exd4 {[%emt 0:00:21]} 18. Bg5 {[%emt 0:01:21]} d3 {[%emt 0:00:33]} 19. Bxd3 {[%emt 0:00:27]} Qxd3 {[%emt 0:00:50]} 20. Re3 {[%emt 0:00:23]} Qd7 {[%emt 0:01:13]} 21. Nf3 {[%emt 0:00:27]} Qxd1+ {[%emt 0:02:41]} 22. Rxd1 {[%emt 0:00:24]} b5 {[%emt 0:00:23]} 23. axb5 {[%emt 0:00:51]} Bxb5 {[%emt 0:00:20]} 24. Rd5 {[%emt 0:00:21]} Bc4 {[%emt 0:00:48]} 25. Rc5 {[%emt 0:00:25]} Be6 {[%emt 0:00:22]} 26. Ra3 {[%emt 0:01:32]} a4 {[%emt 0:00:48]} 27. e5 {[%emt 0:01:16]} h6 {[%emt 0:01:14]} 28. Bh4 {[%emt 0:01:49]} g5 {[%emt 0:00:43]} 29. Bg3 {[%emt 0:00:23]} O-O {[%emt 0:00:23]} 30. Rb5 {[%emt 0:01:11]} Rfd8 {[%emt 0:01:20]} 31. Rb4 {[%emt 0:00:28]} Rd1+ {[%emt 0:00:45]} 32. Kh2 {[%emt 0:00:22]} Rc8 {[%emt 0:00:24]} 33. Rd4 {[%emt 0:01:09]} Rxd4 {[%emt 0:01:09]} 34. Nxd4 {[%emt 0:00:23]} Bd7 {[%emt 0:00:20]} 35. Rd3 {[%emt 0:01:12]} h5 {[%emt 0:01:32]} 36. f4 {[%emt 0:00:27]} h4 {[%emt 0:00:27]} 37. Be1 {[%emt 0:00:23]} gxf4 {[%emt 0:00:23]} 38. Bxh4 {[%emt 0:00:22]} Rb8 {[%emt 0:01:54]} 39. Nf3 {[%emt 0:00:32]} Bc6 {[%emt 0:00:40]} 40. Bxe7 {[%emt 0:00:27]} Bxf3 {[%emt 0:02:05]} 41. Rxf3 {[%emt 0:30:23]} Bxe5 {[%emt 0:31:45]} 42. Ba3 {[%emt 0:00:22]} Kg7 {[%emt 0:01:33]} 43. Rf2 {[%emt 0:01:06]} Rc8 {[%emt 0:01:21]} 44. Rd2 {[%emt 0:00:32]} Kg6 {[%emt 0:01:35]} 45. Kg1 {[%emt 0:00:30]} Kf5 {[%emt 0:00:26]} 46. Kf2 {[%emt 0:00:23]} f6 {[%emt 0:00:22]} 47. Kf3 {[%emt 0:00:45]} Rg8 {[%emt 0:00:24]} 48. Rd5 {[%emt 0:00:57]} Rg3+ {[%emt 0:00:35]} 49. Kf2 {[%emt 0:00:23]} Ke4 {[%emt 0:00:21]} 50. Rd2 {[%emt 0:00:39]} Bd4+ {[%emt 0:00:25]} 51. Kf1 {[%emt 0:00:24]} f3 {[%emt 0:01:04]} 52. gxf3+ {[%emt 0:00:22]} Ke3 {[%emt 0:00:22]} 53. Bb4 {[%emt 0:00:49]} Rxh3 {[%emt 0:00:26]} 54. Kg2 {[%emt 0:00:25]} Rh7 {[%emt 0:00:27]} 55. Rd1 {[%emt 0:00:51]} Rg7+ {[%emt 0:00:28]} 56. Kh3 {[%emt 0:00:23]} Bxb2 {[%emt 0:00:37]} 57. Rd5 {[%emt 0:01:00]} Be5 {[%emt 0:00:39]} 58. Bc5+ {[%emt 0:00:46]} Kxf3 {[%emt 0:00:48]} 59. Rd3+ {[%emt 0:00:21]} Ke4 {[%emt 0:00:21]} 60. Ra3 {[%emt 0:00:21]} Rh7+ {[%emt 0:00:33]} 61. Kg2 {[%emt 0:00:23]} Rg7+ {[%emt 0:01:00]} 62. Kh3 {[%emt 0:00:28]} Kf5 {[%emt 0:00:53]} 63. Rxa4 {[%emt 0:00:30]} Rg3+ {[%emt 0:00:25]} 64. Kh4 {[%emt 0:00:21]} Rg2 {[%emt 0:01:03]} 65. Ra3 {[%emt 0:00:22]} Rh2+ {[%emt 0:00:32]} 66. Rh3 {[%emt 0:00:22]} Rc2 {[%emt 0:00:20]} 67. Rf3+ {[%emt 0:01:50]} Ke4 {[%emt 0:00:22]} 68. Re3+ {[%emt 0:00:22]} Kf4 {[%emt 0:00:21]} 69. Bb6 {[%emt 0:00:37]} Rb2 {[%emt 0:00:22]} 70. Ba7 {[%emt 0:00:56]} Rb7 {[%emt 0:00:25]} 0-1

[Event "FTX Road to Miami Prelims 2022"]
[Site "Online"]
[Date "2022.07.04"]
[Round "12.3"]
[White "Shankland, Sam"]
[Black "Aronian, Levon"]
[Result "1-0"]
[ECO "C45"]
[WhiteElo "2720"]
[BlackElo "2775"]
[Annotator "ChessBase"]
[PlyCount "103"]
[EventDate "2022.07.10"]
[EventType "tourn"]
[EventCountry "NET"]
[SourceTitle "playchess.com"]
[Source "ChessBase"]
[SourceQuality "1"]
[TimeControl "40/5400+30:1800+30"]

1. e4 {[%emt 1:15:40]} e5 {[%emt 1:15:40]} 2. Nf3 {[%emt 0:00:22]} Nc6 {[%emt 0:00:22]} 3. d4 {[%emt 0:00:21]} exd4 {[%emt 0:00:21]} 4. Nxd4 {[%emt 0:00:21]} Nf6 {[%emt 0:00:21]} 5. Nxc6 {[%emt 0:00:21]} bxc6 {[%emt 0:00:21]} 6. Bd3 {[%emt 0:00:21]} d5 {[%emt 0:00:26]} 7. exd5 {[%emt 0:00:22]} cxd5 {[%emt 0:00:21]} 8. O-O {[%emt 0:00:22]} Be7 {[%emt 0:00:21]} 9. c4 {[%emt 0:00:21]} O-O {[%emt 0:00:22]} 10. Nc3 {[%emt 0:00:22]} d4 {[%emt 0:01:25]} 11. Ne4 {[%emt 0:00:22]} Nxe4 {[%emt 0:00:30]} 12. Bxe4 {[%emt 0:00:21]} Rb8 {[%emt 0:00:21]} 13. Qd3 {[%emt 0:01:01]} h6 {[%emt 0:00:37]} 14. b3 {[%emt 0:01:16]} Bd6 {[%emt 0:00:50]} 15. Bd2 {[%emt 0:00:36]} c5 {[%emt 0:00:28]} 16. Rfe1 {[%emt 0:00:37]} Qf6 {[%emt 0:00:58]} 17. Re2 {[%emt 0:01:22]} Bg4 {[%emt 0:00:42]} 18. f3 {[%emt 0:00:25]} Bd7 {[%emt 0:00:22]} 19. Rae1 {[%emt 0:00:34]} Rbe8 {[%emt 0:02:13]} 20. a3 {[%emt 0:01:25]} Rb8 {[%emt 0:01:11]} 21. Rb1 {[%emt 0:00:35]} Rfe8 {[%emt 0:00:39]} 22. b4 {[%emt 0:00:31]} Bf5 {[%emt 0:01:03]} 23. Rbe1 {[%emt 0:01:38]} Bxe4 {[%emt 0:02:46]} 24. Rxe4 {[%emt 0:00:23]} Rxe4 {[%emt 0:00:33]} 25. Rxe4 {[%emt 0:00:21]} a6 {[%emt 0:00:56]} 26. b5 {[%emt 0:02:21]} axb5 {[%emt 0:00:37]} 27. cxb5 {[%emt 0:00:21]} Ra8 {[%emt 0:00:21]} 28. b6 {[%emt 0:00:57]} Rb8 {[%emt 0:01:30]} 29. Ba5 {[%emt 0:01:04]} Qg5 {[%emt 0:01:34]} 30. Qc4 {[%emt 0:01:22]} Qh5 {[%emt 0:01:07]} 31. h4 {[%emt 0:00:46]} Kh7 {[%emt 0:00:50]} 32. a4 {[%emt 0:01:10]} f5 {[%emt 0:01:02]} 33. Re6 {[%emt 0:01:36]} Bf4 {[%emt 0:01:59]} 34. Be1 {[%emt 0:01:00]} Re8 {[%emt 0:02:35]} 35. Kf1 {[%emt 0:00:47]} d3 {[%emt 0:00:40]} 36. Rxe8 {[%emt 0:00:33]} Qxe8 {[%emt 0:00:22]} 37. Qxd3 {[%emt 0:00:21]} Qxa4 {[%emt 0:00:23]} 38. Qxf5+ {[%emt 0:00:33]} Kg8 {[%emt 0:01:18]} 39. b7 {[%emt 0:01:40]} Qc4+ {[%emt 0:00:44]} 40. Kg1 {[%emt 0:00:34]} Qd4+ {[%emt 0:01:03]} 41. Kh1 {[%emt 0:30:35]} Qc4 {[%emt 0:30:22]} 42. Bf2 {[%emt 0:00:39]} Qb4 {[%emt 0:00:34]} 43. g3 {[%emt 0:00:57]} Qxb7 {[%emt 0:00:32]} 44. Qxf4 {[%emt 0:00:25]} Qb1+ {[%emt 0:00:36]} 45. Kg2 {[%emt 0:00:26]} Qa2 {[%emt 0:00:22]} 46. Qf5 {[%emt 0:00:39]} c4 {[%emt 0:00:24]} 47. Qd5+ {[%emt 0:00:22]} Kh7 {[%emt 0:00:22]} 48. h5 {[%emt 0:00:22]} Kh8 {[%emt 0:00:46]} 49. g4 {[%emt 0:00:23]} Qa4 {[%emt 0:00:36]} 50. Bd4 {[%emt 0:00:44]} Qc2+ {[%emt 0:00:23]} 51. Kg3 {[%emt 0:00:21]} Qc1 {[%emt 0:00:23]} 52. Qa8+ {[%emt 0:00:30]} 1-0